lending/lending_fUSD_20240206
["ID","MTS","AMOUNT","RATE_DAILY","PERIOD"]
[313384678,1707251438023,-37431.03579969,0.00029107,2]
[313384679,1707251443641,-488.92621759,0.00029105,2]
[313384680,1707251443651,-401.96625764,0.00029106,2]
[313384681,1707251443660,-157.12271265,0.00029106,2]
[313384682,1707251443670,-192.03577205,0.00029106,2]
[313384683,1707251443679,-1251.1161454,0.00029106,2]
[313384684,1707251443689,-18823.86373667,0.00029107,2]
[313384685,1707251443766,-528.85,0.00029107,2]
[313384752,1707251444624,-229.23938363,0.00029105,2]
[313384754,1707251444633,-155.51166875,0.00029105,2]
[313384755,1707251444642,-326.25992106,0.00029105,2]
[313384757,1707251444652,-264126.72880414,0.00029107,2]
[313384759,1707251444661,-366.23585006,0.000295,2]
[313384760,1707251444670,-150.0,0.00029798,2]
[313384761,1707251444680,-2000.0,0.00029983,2]
[313384762,1707251444689,-155.0,0.0003,2]
[313384763,1707251444698,-206.71,0.0003005,2]
[313384764,1707251444707,-159.48,0.00030094,2]
[313384765,1707251444716,-1256.27,0.00030181,2]
[313384766,1707251444725,-152.05199027,0.00030224,2]
[313384767,1707251444735,-250.0,0.00031113,2]
[313384768,1707251444744,-159.48,0.00031738,2]
[313384770,1707251444753,-152.05199027,0.00031738,2]
[313384772,1707251444763,-206.71,0.00032314,2]
[313384774,1707251444773,-164.14,0.00032367,2]
[313384776,1707251444782,-180.0,0.00032369,2]
[313384779,1707251444791,-150.0,0.00033182,2]
[313384783,1707251444800,-152.05199027,0.00033251,2]
[313384787,1707251444809,-159.48,0.00033381,2]
[313384791,1707251444818,-301.59143,0.00033553,5]
[313384795,1707251444828,-265.80071031,0.00033899,4]
[313384799,1707251444837,-317.66160117,0.00033899,2]
[313384801,1707251444845,-206.71,0.00034578,2]
[313384804,1707251444855,-152.05199027,0.00034765,2]
[313384806,1707251444864,-164.14,0.0003531,2]
[313384808,1707251444873,-500.0,0.000359,13]
[313384810,1707251444882,-400.0,0.000359,13]
[313384812,1707251444891,-384.66969793,0.00036251,2]
[313384814,1707251444899,-800.0,0.00036274,2]
[313384816,1707251444909,-152.05199027,0.00036278,2]
[313384818,1707251444917,-588.04595914,0.00036321,2]
[313384820,1707251444927,-160.7240338,0.00036321,10]
[313384821,1707251444936,-151.12841014,0.0003641,2]
[313384823,1707251444945,-218364.6674581,0.0003642,2]
[313384826,1707251444964,-465.37709091,0.0003642,2]
[313384829,1707251444980,-155.0,0.00029105,2]
[313384831,1707251444989,-10651.21799998,0.0003642,2]
[313384833,1707251445791,-3765.73902743,0.00029104,2]
[313384834,1707251445800,-155.0,0.00029104,2]
[313384835,1707251445809,-1240.55179463,0.00029105,2]
[313384836,1707251445818,-1051.73728749,0.00036321,2]
[313384837,1707251445828,-6741.27189045,0.0003642,2]
[313384838,1707251445934,5204.70011666,0.00021846,2]
[313384839,1707251446801,997.95531102,0.00021737,2]
[313384840,1707251499791,1047.0441,0.00026354,90]
[313384907,1707252362177,421.03960501,0.00022119,2]
[313384908,1707252380170,544.45125247,0.00022119,2]
[313384909,1707252388300,152.64318861,0.00021568,2]
[313384910,1707252437588,289.67,0.00021804,2]
[313384911,1707252576909,200.52345751,0.00021695,2]
[313384932,1707252634432,-1639.42304312,0.00022915,2]
[313384933,1707252634499,-2000.14401959,0.00022915,2]
[313384934,1707252634509,-1954.5875091,0.00022915,2]
[313384935,1707252634519,-534.13363385,0.00022915,2]
[313384936,1707252634529,-10537.74486602,0.00022916,2]
[313384937,1707252634539,-1041.09826119,0.00022916,2]
[313384938,1707252634549,-286.49170438,0.00022916,2]
[313384939,1707252634558,-311.35907807,0.00022917,2]
[313384940,1707252634568,-1368.83090651,0.00022917,2]
[313384941,1707252634577,-496.69101486,0.00022917,2]
[313384942,1707252634587,-231.20983156,0.00022918,2]
[313384943,1707252634597,-375.26282183,0.00022919,2]
[313384944,1707252634607,-283.92894102,0.0002292,2]
[313384945,1707252634616,-624.36377304,0.0002292,2]
[313384946,1707252634626,-3041.67994149,0.0002292,2]
[313384947,1707252634636,-363.11477299,0.00022921,2]
[313384948,1707252634647,-4263.07443407,0.00022921,2]
[313384949,1707252634657,-4587.89451303,0.00022922,2]
[313384950,1707252634666,-1000.0,0.00022923,2]
[313384952,1707252634676,-150.0,0.00022932,2]
[313384954,1707252634686,-150.0,0.00022932,2]
[313384956,1707252634696,-2976.2579,0.00022939,2]
[313384958,1707252634706,-155.79756028,0.00022939,2]
[313384960,1707252634715,-600.1668679,0.00023045,2]
[313384962,1707252634725,-499.99,0.00023045,2]
[313384964,1707252634735,-342.81727514,0.00023065,2]
[313384966,1707252634744,-2124.77268813,0.00023065,2]
[313384969,1707252634761,-5472.19014788,0.00023065,2]
[313384970,1707252634777,-1189.64716399,0.00023065,2]
[313384971,1707252634787,-183.28,0.00023449,2]
[313384972,1707252634797,-250.0,0.00023592,2]
[313384973,1707252634806,-484.73190094,0.00023721,2]
[313384982,1707252637772,-9458.1501573,0.00022915,2]
[313384983,1707252637937,-13242.56963538,0.00022915,2]
[313384984,1707252637947,-15.26809906,0.00023721,2]
[313384985,1707252637956,-3209.72,0.00023798,2]
[313384986,1707252637966,-1000.0,0.00023829,2]
[313384987,1707252637975,-500.0,0.00023894,2]
[313384988,1707252637985,-150.0,0.00023908,2]
[313384989,1707252637994,-158.76,0.00023936,2]
[313384990,1707252638003,-275.86,0.00023989,2]
[313384991,1707252638013,-201.89660623,0.00024,2]
[313384992,1707252638034,-158.76,0.0002402,2]
[313384993,1707252638044,-289.67,0.00024068,2]
[313384994,1707252638054,-263.3,0.00024081,2]
[313384995,1707252638064,-2000.0,0.00024096,2]
[313384996,1707252638074,-158.76,0.00024103,2]
[313384997,1707252638084,-200.0,0.00024116,2]
[313384998,1707252638094,-23430.66472439,0.00024116,2]
[313384999,1707252638107,-469.33527561,0.00024116,2]
[313385000,1707252638118,-134.67232646,0.00024132,2]
[313385001,1707252638130,-65.32767354,0.00024132,2]
[313385002,1707252638139,-748.63,0.00024132,2]
[313385003,1707252638149,-309.53,0.00024181,2]
[313385005,1707252638159,-158.76,0.00024186,2]
[313385007,1707252638169,-158.76,0.00024269,2]
[313385009,1707252638178,-158.76,0.00024352,2]
[313385011,1707252638187,-2088.70579197,0.00024364,2]
[313385013,1707252638199,-229.29420803,0.00024364,2]
[313385014,1707252638210,-581.33,0.00024384,2]
[313385015,1707252638220,-258.51,0.00024384,2]
[313385016,1707252638230,-158.76,0.00024435,2]
[313385017,1707252638239,-158.76,0.00024519,2]
[313385018,1707252638249,-201.92,0.00024573,2]
[313385019,1707252638259,-158.76,0.00024602,2]
[313385020,1707252638268,-250.0,0.00024658,2]
[313385021,1707252638279,-158.76,0.00024685,2]
[313385022,1707252638292,-158.76,0.00024768,2]
[313385023,1707252638302,-183.28,0.00024819,2]
[313385024,1707252638313,-158.76,0.00024851,2]
[313385025,1707252638325,-158.76,0.00024934,2]
[313385026,1707252638336,-937.18611161,0.00025,2]
[313385027,1707252638350,-350.0,0.00025,3]
[313385028,1707252638361,-155.79756028,0.00025011,2]
[313385029,1707252638372,-158.76,0.00025017,2]
[313385030,1707252638383,-158.76,0.00025101,2]
[313385031,1707252638393,-158.76,0.00025184,2]
[313385032,1707252638403,-167.43,0.00025237,2]
[313385033,1707252638414,-905.80262914,0.00025782,2]
[313385041,1707252640440,-141.08737086,0.00025782,2]
[313385042,1707252640451,-309.53,0.00025824,2]
[313385043,1707252640461,-86.93262914,0.00025875,18]
[313385044,1707252640856,-361.26321849,0.00025875,18]
[313385045,1707252641614,-557.2843266,0.00025875,18]
[313385046,1707252641626,-9069.08982577,0.00025875,18]
[313385047,1707252641636,-3317.0235,0.00025875,2]
[313385048,1707252641645,-330.0054,0.00025875,2]
[313385049,1707252641655,-1000.0,0.00025875,2]
[313385050,1707252641664,-260.29650882,0.00025879,2]
[313385052,1707252641675,-108124.33650002,0.00025975,2]
[313385074,1707252642927,-300.06950857,0.00025975,2]
[313385075,1707252643042,-3932.21669298,0.00025975,2]
[313385090,1707252645758,-1755.0,0.00025975,2]
[313385103,1707252645869,-1031.36,0.00025975,2]
[313385105,1707252645881,-1029.7146752,0.00025975,2]
[313385111,1707252645924,-2156.45,0.00025975,2]
[313385113,1707252645936,-4763.60000002,0.00025975,2]
[313385119,1707252645981,-2127.35,0.00025975,2]
[313385145,1707252646946,-335.27295591,0.00025975,2]
[313385146,1707252789352,421.03960501,0.0002185,2]
[313385149,1707252830906,2000.0,0.0002244,2]
[313385150,1707252833976,200.0,0.00022284,2]
[313385151,1707252844646,500.0,0.00022385,2]
[313385152,1707252847710,150.0,0.00022279,2]
[313385153,1707252898509,166.06,0.00022166,2]
[313385154,1707252948682,200.0,0.00022051,2]
[313385155,1707252950993,19574.33,0.00022051,2]
[313385156,1707252984242,184.77,0.00021957,2]
[313385157,1707252988961,153.25,0.00022214,2]
[313385158,1707252989175,153.25,0.00022291,2]
[313385159,1707252989407,153.25,0.00022368,2]
[313385160,1707252989622,153.25,0.00022445,2]
[313385161,1707253000105,258.03,0.000219,2]
[313385162,1707253001513,258.03,0.00022037,2]
[313385163,1707253002668,258.03,0.00022174,2]
[313385164,1707253003949,258.03,0.00022311,2]
[313385165,1707253005222,258.03,0.00022448,2]
[313385166,1707253013342,176.99,0.000219,2]
[313385167,1707253014627,176.99,0.00022448,2]
[313385168,1707253031207,310.04,0.00019833,2]
[313385169,1707253031424,310.04,0.00022097,2]
[313385170,1707253040419,250.0,0.00021738,2]
[313385171,1707253100464,183.28,0.00021746,2]
[313385172,1707253103890,-231.20983156,0.00022513,2]
[313385173,1707253103912,-1528.79016844,0.00022513,2]
[313385174,1707253136148,2819.08,0.00021707,2]
[313385175,1707253146861,272.44,0.00021692,2]
[313385176,1707253165078,23900.0,0.00021685,2]
[313385177,1707253181637,208.7006556,0.00022503,2]
[313385178,1707253182913,534.13363385,0.00022503,2]
[313385179,1707253184797,231.20983156,0.00022503,2]
[313385180,1707253187734,283.92894102,0.00022503,2]
[313385181,1707253195401,203.47384544,0.00022503,2]
[313385182,1707253196724,4654.3000471,0.00022503,2]
[313385183,1707253200742,402.13196657,0.00022503,2]
[313385184,1707253201294,24440.12259294,0.00022503,2]
[313385185,1707253201443,809.77,0.00021692,2]
[313385186,1707253201743,260.54355192,0.00022503,2]
[313385187,1707253202232,2147.53131177,0.00022503,2]
[313385188,1707253202353,150.0,0.00022503,2]
[313385189,1707253203800,243.44529811,0.00022503,2]
[313385190,1707253204448,365.52063393,0.00022503,2]
[313385191,1707253204476,611.71,0.00021866,2]
[313385192,1707253204930,609.0220151,0.00022503,2]
[313385193,1707253206607,761.91761938,0.00022503,2]
[313385194,1707253207207,496.69101486,0.00022503,2]
[313385195,1707253209226,208.12695895,0.0002239,15]
[313385196,1707253210750,3649.93209183,0.00022503,2]
[313385197,1707253210976,624.36377304,0.00022503,2]
[313385198,1707253211458,699.76836393,0.00022503,2]
[313385199,1707253212395,197.73922596,0.00022503,2]
[313385200,1707253215020,2315.83605445,0.00022503,2]
[313385201,1707253215197,402.13196657,0.00022503,2]
[313385202,1707253215400,202.50935864,0.00022503,2]
[313385203,1707253218241,2147.53131177,0.00022503,2]
[313385204,1707253219348,669.32714985,0.00022503,2]
[313385205,1707253220454,432.30393832,0.00022503,2]
[313385206,1707253221788,242.16153788,0.00022503,2]
[313385207,1707253221976,200.03264909,0.00022503,2]
[313385208,1707253222607,370.90821762,0.00022503,2]
[313385209,1707253224764,5465.47341339,0.00022503,2]
[313385210,1707253226392,197.57563176,0.00022503,2]
[313385211,1707253226935,200.0,0.00021707,2]
[313385212,1707253226978,359.26921069,0.00021603,2]
[313385213,1707253227431,699.76836393,0.00022503,2]
[313385214,1707253228517,5235.46758708,0.00022503,2]
[313385215,1707253229210,508.91619728,0.00022278,2]
[313385216,1707253231230,194.18942231,0.00022503,2]
[313385217,1707253231379,921.67404902,0.00022503,2]
[313385218,1707253232336,155.0,0.00022503,2]
[313385219,1707253233021,2313.16944683,0.00022503,2]
[313385220,1707253237972,199.68448045,0.00022503,2]
[313385221,1707253238247,2145.02909244,0.00022503,2]
[313385222,1707253238525,531.08932322,0.00022503,2]
[313385223,1707253239149,526.98480998,0.00022503,2]
[313385224,1707253240774,5458.73987683,0.00022503,2]
[313385225,1707253244339,186.69496292,0.00022503,2]
[313385226,1707253244598,5235.46758708,0.00022503,2]
[313385227,1707253245439,701.00995304,0.00022503,2]
[313385228,1707253247504,352.12012099,0.00022503,2]
[313385229,1707253248829,315.5016011,0.00022502,2]
[313385230,1707253252546,488.07076803,0.00022503,2]
[313385231,1707253260050,463.57,0.00021748,2]
[313385232,1707253267485,2000.0,0.00021736,2]
[313385233,1707253288741,697.06,0.00021722,2]
[313385234,1707253298756,500.0,0.00021918,2]
[313385235,1707253362287,10128.252,0.00022405,2]
[313385236,1707253370348,203.86229138,0.00022503,2]
[313385237,1707253372324,231.20983156,0.00022503,2]
[313385238,1707253396564,155.1,0.00021704,2]
[313385239,1707253402710,175.04236578,0.00022408,2]
[313385240,1707253407697,175.04236568,0.00022437,2]
[313385241,1707253410816,171.63,0.00021883,2]
[313385242,1707253411213,171.63,0.00021943,2]
[313385243,1707253411455,171.63,0.00022003,2]
[313385244,1707253411678,171.63,0.00022063,2]
[313385245,1707253411899,171.63,0.00022123,2]
[313385246,1707253412153,171.63,0.00022183,2]
[313385247,1707253412516,171.63,0.00022243,2]
[313385248,1707253412606,171.63,0.00022303,2]
[313385249,1707253412712,175.04236568,0.00022466,2]
[313385250,1707253412793,171.63,0.00022363,2]
[313385251,1707253413207,171.63,0.00022423,2]
[313385252,1707253413466,171.63,0.00022483,2]
[313385253,1707253417704,175.04236568,0.00022496,2]
[313385254,1707253474356,250.0,0.00021644,2]
[313385255,1707253488639,150.0,0.00021899,2]
[313385256,1707253489963,150.0,0.00022447,2]
[313385257,1707253499817,151.09808341,0.00021899,2]
[313385258,1707253503615,200.0,0.00021644,2]
[313385259,1707253507621,840.0,0.00021644,2]
[313385260,1707253527693,332.85,0.00019723,2]
[313385261,1707253527893,332.85,0.00021987,2]
[313385262,1707253564437,272.44,0.00021657,2]
[313385263,1707253590832,23900.0,0.00021642,2]
[313385264,1707253610991,258.03,0.00021899,2]
[313385265,1707253612268,258.03,0.00022036,2]
[313385266,1707253613592,511.72,0.00022173,2]
[313385267,1707253621578,176.99,0.00021899,2]
[313385268,1707253622699,150.0,0.00022,2]
[313385269,1707253622864,176.99,0.00022447,2]
[313385270,1707253630079,1366.65,0.00021878,2]
[313385271,1707253646089,-208.7006556,0.00022505,2]
[313385272,1707253646108,-21.16246976,0.00022506,2]
[313385273,1707253699647,856.49,0.00021659,2]
[313385274,1707253701714,200.0,0.00021641,2]
[313385275,1707253718959,150.0,0.00021899,2]
[313385276,1707253720259,150.0,0.00022447,2]
[313385277,1707253741273,2000.0,0.00021655,2]
[313385278,1707253814933,625.32,0.00021659,2]
[313385279,1707253831657,171.07,0.00021659,2]
[313385293,1707253831909,-182.46894205,0.00022506,2]
[313385294,1707253831919,-170.85563362,0.00022506,2]
[313385295,1707253831929,-2933.21105782,0.00022508,2]
[313385296,1707253831943,-415.03901403,0.00022508,2]
[313385297,1707253831956,-578.8885869,0.00022508,2]
[313385298,1707253831974,-647.39267875,0.00022508,2]
[313385299,1707253832073,-69.81159374,0.00022508,2]
[313385300,1707253832083,-2784.84952653,0.00022509,2]
[313385301,1707253832093,-150.0,0.00022509,2]
[313385302,1707253832102,-150.0,0.00022509,2]
[313385303,1707253832112,-20370.58699662,0.00022509,2]
[313385304,1707253832121,-210.93486348,0.0002251,2]
[313385305,1707253832131,-413.63226986,0.00022511,2]
[313385306,1707253832140,-1486.19,0.00022513,2]
[313385307,1707253832150,-175.04236568,0.00022525,2]
[313385308,1707253832159,-150.99,0.00022525,2]
[313385309,1707253832168,-1635.74,0.00022525,2]
[313385310,1707253832178,-171.63,0.00022543,2]
[313385311,1707253832188,-499.99,0.00022543,2]
[313385313,1707253832197,-175.04236568,0.00022554,2]
[313385315,1707253832207,-3257.2014,0.00022562,2]
[313385317,1707253832217,-1000.0,0.00022562,2]
[313385319,1707253832227,-5575.3986,0.00022562,2]
[313385321,1707253832236,-2500.0,0.00022562,2]
[313385322,1707253832246,-175.04236568,0.00022583,2]
[313385324,1707253832255,-171.63,0.00022603,2]
[313385326,1707253832265,-175.04236568,0.00022612,2]
[313385328,1707253832274,-2022.46,0.00022631,2]
[313385330,1707253832283,-175.04236568,0.00022642,2]
[313385332,1707253832294,-687.08930327,0.00022659,2]
[313385333,1707253832303,-489.00832469,0.0002266,2]
[313385334,1707253832313,-5228.54294025,0.0002266,2]
[313385335,1707253832322,-315.11170078,0.0002266,2]
[313385336,1707253832331,-6464.08181649,0.00022661,2]
[313385337,1707253832341,-20055.50871206,0.00022661,2]
[313385338,1707253832351,-74977.0085,0.00022662,2]
[313385339,1707253832361,-151743.6331,0.00022662,2]
[313385340,1707253832370,-171.63,0.00022663,2]
[313385341,1707253832379,-346.40157825,0.00022668,2]
[313385342,1707253832388,-145987.0,0.0002267,2]
[313385343,1707253832398,-175.04236568,0.00022671,2]
[313385344,1707253832407,-4587.89451303,0.00022696,2]
[313385345,1707253832416,-2300.0,0.000227,8]
[313385346,1707253832429,-175.04236568,0.000227,2]
[313385347,1707253832438,-171.63,0.00022723,2]
[313385348,1707253832448,-175.04236568,0.00022729,2]
[313385349,1707253832457,-175.04236568,0.00022759,2]
[313385350,1707253832467,-9592.2915282,0.00022763,2]
[313385351,1707253832476,-155.0,0.00022768,2]
[313385352,1707253832486,-171.63,0.00022783,2]
[313385353,1707253832495,-175.04236568,0.00022788,2]
[313385354,1707253832505,-165.56669244,0.00022799,2]
[313385355,1707253832514,-4700.0,0.000228,8]
[313385356,1707253832523,-841.38982998,0.00022811,2]
[313385357,1707253832532,-175.04236568,0.00022817,2]
[313385358,1707253832542,-171.63,0.00022843,2]
[313385359,1707253832551,-175.04236568,0.00022846,2]
[313385360,1707253832560,-841.38982998,0.00022867,2]
[313385361,1707253832569,-175.04236568,0.00022875,2]
[313385362,1707253832579,-187.14142257,0.00022889,2]
[313385363,1707253832589,-342.81727514,0.00022898,2]
[313385364,1707253832599,-500.0,0.00022898,2]
[313385365,1707253832608,-500.0,0.00022898,2]
[313385366,1707253832617,-500.0,0.00022898,2]
[313385367,1707253832627,-648.70870081,0.00022898,2]
[313385368,1707253832636,-500.0,0.00022898,2]
[313385369,1707253832645,-500.0,0.00022898,2]
[313385370,1707253832655,-500.0,0.00022898,2]
[313385371,1707253832665,-543.57925123,0.00022898,2]
[313385372,1707253832677,-500.0,0.00022898,2]
[313385373,1707253832686,-200.0,0.00022899,2]
[313385374,1707253832695,-180.0,0.00022899,2]
[313385375,1707253832704,-618545.24704903,0.00022899,2]
[313385376,1707253832717,-547.9993307,0.00022899,2]
[313385377,1707253832741,-958.47208665,0.00022899,2]
[313385378,1707253832754,-765.18057038,0.00022899,2]
[313385379,1707253832766,-467.8057218,0.00022899,2]
[313385380,1707253832780,-3213.0006693,0.00022899,2]
[313385388,1707253837972,-37334.94949096,0.00022899,2]
[313385389,1707253838025,-551.29558134,0.00022899,2]
[313385390,1707253838238,-46022.3983723,0.00022899,2]
[313385391,1707253838250,-2595.27249666,0.00022899,2]
[313385421,1707253840620,-8107.56216068,0.00022899,2]
[313385422,1707253840633,-19275.93088257,0.00022899,2]
[313385423,1707253840642,-2022.78878145,0.000229,2]
[313385424,1707253840653,-1134.79805978,0.000229,2]
[313385425,1707253840665,-4294.88132638,0.000229,2]
[313385426,1707253840683,-6554.06686021,0.000229,2]
[313385427,1707253840693,-227166.34556056,0.000229,2]
[313385428,1707253840705,-7100.0,0.000229,8]
[313385429,1707253840714,-175.04236568,0.00022905,2]
[313385430,1707253840723,-403.6031754,0.00022923,2]
[313385431,1707253840732,-2534.88789888,0.00022923,2]
[313385432,1707253840742,-193.17246968,0.00022923,2]
[313385433,1707253840751,-175.04236568,0.00022934,2]
[313385434,1707253840760,-175.04236568,0.00022963,2]
[313385435,1707253840769,-150.0,0.00022995,2]
[313385436,1707253840779,-176.99,0.00022995,2]
[313385437,1707253840789,-1048.26100712,0.00022998,2]
[313385438,1707253840802,-155.0,0.00022998,2]
[313385439,1707253840811,-1259.57085833,0.00022998,2]
[313385440,1707253840822,-2788.02134693,0.00022998,2]
[313385441,1707253840831,-699.81053348,0.00022998,2]
[313385442,1707253840841,-289.74601572,0.00022998,2]
[313385443,1707253840850,-502.73699602,0.00022998,2]
[313385444,1707253840860,-155.0,0.00022998,2]
[313385445,1707253840869,-218.5573922,0.00022998,2]
[313385446,1707253840878,-387.88583909,0.00022998,2]
[313385447,1707253840886,-500.0,0.00022999,2]
[313385448,1707253840896,-500.0,0.00022999,2]
[313385449,1707253840905,-500.0,0.00022999,2]
[313385450,1707253840914,-503.26608601,0.00022999,2]
[313385451,1707253840923,-329.62440922,0.00022999,2]
[313385452,1707253840932,-500.0,0.00022999,2]
[313385453,1707253840941,-581.21290854,0.00022999,2]
[313385454,1707253840951,-534.57472657,0.00022999,2]
[313385455,1707253840960,-516.52568477,0.00022999,2]
[313385456,1707253840970,-445.89278508,0.00022999,2]
[313385457,1707253840979,-500.0,0.00022999,2]
[313385458,1707253840988,-500.0,0.00022999,2]
[313385459,1707253840997,-604.45420985,0.00022999,2]
[313385460,1707253841006,-500.0,0.00022999,2]
[313385461,1707253841016,-500.0,0.00022999,2]
[313385462,1707253841026,-532.54034076,0.00022999,2]
[313385463,1707253841035,-500.0,0.00022999,2]
[313385464,1707253841046,-500.0,0.00022999,2]
[313385465,1707253841056,-261.06963346,0.00022999,2]
[313385466,1707253841066,-500.0,0.00022999,2]
[313385467,1707253841076,-500.0,0.00022999,2]
[313385468,1707253841085,-500.0,0.00022999,2]
[313385469,1707253841094,-500.0,0.00022999,2]
[313385470,1707253841103,-500.0,0.00022999,2]
[313385471,1707253841112,-500.0,0.00022999,2]
[313385472,1707253841121,-102683.63820403,0.00023,2]
[313385473,1707253841350,-268.8747696,0.00023,2]
[313385537,1707253843134,-2006.74853564,0.00023,2]
[313385596,1707253846018,-208.47052732,0.00022507,2]
[313385597,1707253846028,-803.36486429,0.00022507,2]
[313385598,1707253846127,-370.79589841,0.00022507,2]
[313385599,1707253846186,-2958.80265557,0.00022507,2]
[313385600,1707253846195,-6037.67736105,0.00023,2]
[313385601,1707253846207,-475.2469589,0.00023,2]
[313385832,1707253871392,2828.69095531,0.00022281,2]
[313385833,1707253891513,304.74826577,0.00021,2]
[313385834,1707253896664,155.0,0.00020609,2]
[313385835,1707253899526,3197.13386433,0.00021605,2]
[313385836,1707253902626,155.0,0.00022502,2]
[313385837,1707253903775,1005.86579131,0.00020252,2]
[313385838,1707253910357,6464.08181649,0.00022502,2]
[313385839,1707253913133,155.0,0.00020252,2]
[313385840,1707253918613,228.31643771,0.00022502,2]
[313385841,1707253918652,156.61149724,0.000189,2]
[313385842,1707253920938,944.15552847,0.00022502,2]
[313385843,1707253921861,199.60880723,0.00021,2]
[313385844,1707253922032,300.0,0.00022502,2]
[313385845,1707253923779,1333.70804756,0.00021,2]
[313385846,1707253927019,4587.89451303,0.00022502,2]
[313385847,1707253928904,264.4695804,0.00022502,2]
[313385848,1707253932313,1990.23087048,0.00022502,2]
[313385849,1707253934030,311.35907807,0.00022502,2]
[313385850,1707253936927,929.22196737,0.00022502,2]
[313385851,1707253937379,526.0941245,0.00022502,2]
[313385852,1707253938349,525.81107289,0.00022502,2]
[313385853,1707253938570,339.00015113,0.00022502,2]
[313385854,1707253940894,263.44178166,0.00022502,2]
[313385855,1707253941019,4587.89451303,0.00022502,2]
[313385856,1707253945135,419.76330067,0.00022502,2]
[313385857,1707253948033,3156.95036538,0.00022502,2]
[313385858,1707253950045,409.81434305,0.00022502,2]
[313385859,1707253950425,299.56,0.00019723,2]
[313385860,1707253950544,299.56,0.00021987,2]
[313385861,1707253951327,4642.12330423,0.00022502,2]
[313385862,1707253951403,526.0941245,0.00022502,2]
[313385863,1707253951479,2485.19324714,0.00022502,2]
[313385864,1707253954347,524.76493537,0.00022502,2]
[313385865,1707253955030,7814.2890832,0.00022502,2]
[313385866,1707253956586,216.60891006,0.00022502,2]
[313385867,1707253958494,1054.47255118,0.00022501,2]
[313385868,1707253959042,2402.95192497,0.00022502,2]
[313385869,1707253959144,420.49267242,0.00022502,2]
[313385870,1707253971472,2256.84906362,0.00021828,2]
[313385871,1707253990051,301.856441,0.0002239,2]
[313385873,1707254036088,2977.4533,0.00022407,2]
[313385874,1707254141920,260.75269255,0.00022407,2]
[313385875,1707254183024,200.0,0.00022457,2]
[313385876,1707254204767,2000.0,0.00022457,2]
[313385877,1707254227140,353.03,0.00022,2]
[313385878,1707254257956,521.1,0.00022391,2]
[313385879,1707254269767,160.86,0.00022425,2]
[313385880,1707254281603,300.0,0.00022502,2]
[313385881,1707254287971,610.57725012,0.00022457,2]
[313385882,1707254314905,525.66094304,0.00022502,2]
[313385883,1707254317201,245.77620875,0.00022502,2]
[313385884,1707254323360,155.0,0.00022502,2]
[313385885,1707254331382,524.9997489,0.00022502,2]
[313385886,1707254332457,185.76,0.00022425,2]
[313385887,1707254333525,315.5016011,0.00022502,2]
[313385888,1707254334197,408.91576095,0.00022502,2]
[313385889,1707254335008,1054.47255118,0.00022502,2]
[313385890,1707254335174,503.3410751,0.00022502,2]
[313385891,1707254337195,245.55667011,0.00022502,2]
[313385892,1707254340951,3040.50888199,0.00022502,2]
[313385893,1707254343397,155.0,0.00022502,2]
[313385894,1707254343944,283.92894102,0.00022502,2]
[313385895,1707254346010,33476.12920149,0.00022502,2]
[313385896,1707254346814,1858.86108655,0.00022502,2]
[313385897,1707254347588,7814.2890832,0.00022502,2]
[313385898,1707254349886,408.91576095,0.00022502,2]
[313385899,1707254351020,198.72943685,0.00022502,2]